[Event "*** Titled Tuesday Blitz"]
[Site "Chess.com"]
[Date "2018.10.02"]
[Round "1"]
[White "jncool68"]
[Black "RichardABates"]
[Result "1-0"]
[WhiteElo "2672"]
[BlackElo "2348"]
[TimeControl "180+2"]
[EndTime "13:07:07 PDT"]
[Termination "jncool68 won by resignation"]

1. e4 {[%clk 0:02:58.8]} 1... c5 {[%clk 0:02:59.7]} 2. Nf3 {[%clk 0:02:58.9]}
2... d6 {[%clk 0:03:00.6]} 3. d4 {[%clk 0:02:55.9]} 3... cxd4 {[%clk 0:03:02.5]}
4. Nxd4 {[%clk 0:02:56.5]} 4... Nf6 {[%clk 0:03:02.9]} 5. Nc3 {[%clk 0:02:58]}
5... a6 {[%clk 0:03:04.1]} 6. h3 {[%clk 0:02:57.5]} 6... e5 {[%clk 0:03:04.2]}
7. Nde2 {[%clk 0:02:58.3]} 7... h5 {[%clk 0:03:04.7]} 8. Ng1 {[%clk 0:02:59.2]}
8... Nbd7 {[%clk 0:02:44.1]} 9. Nf3 {[%clk 0:02:59.8]} 9... Nc5 {[%clk
0:02:43.4]} 10. Ng5 {[%clk 0:03:00.5]} 10... Ne6 {[%clk 0:02:34.2]} 11. Bc4
{[%clk 0:02:58.4]} 11... b5 {[%clk 0:02:24.1]} 12. Bb3 {[%clk 0:02:46.7]} 12...
Be7 {[%clk 0:02:18.7]} 13. O-O {[%clk 0:02:34.7]} 13... b4 {[%clk 0:02:17.3]}
14. Nd5 {[%clk 0:02:33.8]} 14... Nxd5 {[%clk 0:02:15.3]} 15. Bxd5 {[%clk
0:02:34]} 15... Nxg5 {[%clk 0:01:59.1]} 16. Bxg5 {[%clk 0:02:29.8]} 16... Rb8
{[%clk 0:01:49.4]} 17. Be3 {[%clk 0:02:16]} 17... Be6 {[%clk 0:01:45.7]} 18. a3
{[%clk 0:02:14.4]} 18... bxa3 {[%clk 0:01:37.4]} 19. Rxa3 {[%clk 0:02:14.5]}
19... Bxd5 {[%clk 0:01:12.1]} 20. Qxd5 {[%clk 0:02:15.1]} 20... O-O {[%clk
0:01:12.4]} 21. b3 {[%clk 0:02:12]} 21... Qc7 {[%clk 0:01:08.5]} 22. c4 {[%clk
0:02:09.2]} 22... Qb7 {[%clk 0:01:04.2]} 23. Rb1 {[%clk 0:02:02]} 23... Qxd5
{[%clk 0:00:43.1]} 24. cxd5 {[%clk 0:02:02.4]} 24... Ra8 {[%clk 0:00:42]} 25. b4
{[%clk 0:02:03.6]} 25... Rfb8 {[%clk 0:00:29.4]} 26. Kf1 {[%clk 0:02:04.7]}
26... g6 {[%clk 0:00:29.6]} 27. Ke2 {[%clk 0:02:05.2]} 27... f5 {[%clk
0:00:28.9]} 28. f3 {[%clk 0:02:06.4]} 28... Kf7 {[%clk 0:00:25.3]} 29. Bd2
{[%clk 0:02:07]} 29... Ke8 {[%clk 0:00:25.3]} 30. Rba1 {[%clk 0:02:08.3]} 30...
Rb6 {[%clk 0:00:23.9]} 31. Ra5 {[%clk 0:02:08.9]} 31... Kd7 {[%clk 0:00:23.4]}
32. b5 {[%clk 0:02:09.7]} 32... Bd8 {[%clk 0:00:22.3]} 33. Rxa6 {[%clk
0:02:09.6]} 33... Rab8 {[%clk 0:00:20.8]} 34. Rxb6 {[%clk 0:02:05.6]} 34... Bxb6
{[%clk 0:00:21]} 35. Kd3 {[%clk 0:02:03.8]} 35... Bd4 {[%clk 0:00:20.2]} 36. Bc3
{[%clk 0:01:57.1]} 36... Bxc3 {[%clk 0:00:19.4]} 37. Kxc3 {[%clk 0:01:58]} 37...
Rxb5 {[%clk 0:00:20.9]} 38. Ra7+ {[%clk 0:01:59.1]} 38... Ke8 {[%clk 0:00:20.8]}
39. Rg7 {[%clk 0:02:00.4]} 39... Rc5+ {[%clk 0:00:20.4]} 40. Kd3 {[%clk
0:02:01.1]} 40... fxe4+ {[%clk 0:00:20]} 41. fxe4 {[%clk 0:02:01.7]} 41... Rc1
{[%clk 0:00:20.4]} 42. Rxg6 {[%clk 0:02:02.6]} 42... Rd1+ {[%clk 0:00:21.2]} 43.
Ke2 {[%clk 0:02:03.6]} 43... Rd4 {[%clk 0:00:21.1]} 44. Ke3 {[%clk 0:02:04.4]}
44... Ra4 {[%clk 0:00:21]} 45. Rxd6 {[%clk 0:02:04.6]} 45... Ra3+ {[%clk
0:00:22.3]} 46. Kf2 {[%clk 0:02:05.8]} 46... h4 {[%clk 0:00:21.7]} 47. Re6+
{[%clk 0:02:06.3]} 47... Kd7 {[%clk 0:00:19.5]} 48. Rxe5 {[%clk 0:02:07.3]} 1-0

[Event "*** Titled Tuesday Blitz"]
[Site "Chess.com"]
[Date "2018.10.02"]
[Round "1"]
[White "b_6"]
[Black "GrigorGrigorov"]
[Result "0-1"]
[WhiteElo "2388"]
[BlackElo "2715"]
[TimeControl "180+2"]
[EndTime "13:07:15 PDT"]
[Termination "GrigorGrigorov won by resignation"]

1. d4 {[%clk 0:02:58.7]} 1... Nf6 {[%clk 0:02:58.6]} 2. Bf4 {[%clk 0:02:57.8]}
2... d5 {[%clk 0:02:58.2]} 3. e3 {[%clk 0:02:59]} 3... e6 {[%clk 0:02:58]} 4.
Nd2 {[%clk 0:02:59.1]} 4... Bd6 {[%clk 0:02:57.8]} 5. Bg3 {[%clk 0:02:59.6]}
5... O-O {[%clk 0:02:58.2]} 6. Bd3 {[%clk 0:02:59.1]} 6... c5 {[%clk 0:02:58.9]}
7. c3 {[%clk 0:03:00]} 7... b6 {[%clk 0:02:59.9]} 8. e4 {[%clk 0:03:01.2]} 8...
Be7 {[%clk 0:02:31.9]} 9. e5 {[%clk 0:02:58.8]} 9... Nfd7 {[%clk 0:02:32.2]} 10.
Qe2 {[%clk 0:02:54.8]} 10... a5 {[%clk 0:02:31.6]} 11. f4 {[%clk 0:02:45]} 11...
Ba6 {[%clk 0:02:30.8]} 12. Bxa6 {[%clk 0:02:32.9]} 12... Nxa6 {[%clk 0:02:32.7]}
13. Ngf3 {[%clk 0:02:34.2]} 13... Nc7 {[%clk 0:02:30]} 14. O-O {[%clk
0:02:30.4]} 14... c4 {[%clk 0:02:29]} 15. Qf2 {[%clk 0:01:57.3]} 15... b5 {[%clk
0:02:20.2]} 16. Bh4 {[%clk 0:01:51]} 16... b4 {[%clk 0:02:21.6]} 17. g4 {[%clk
0:01:49.2]} 17... f5 {[%clk 0:02:18.1]} 18. exf6 {[%clk 0:01:43.9]} 18... Bxf6
{[%clk 0:02:13.4]} 19. Bxf6 {[%clk 0:01:39.4]} 19... Qxf6 {[%clk 0:02:12.8]} 20.
Ne5 {[%clk 0:01:34.3]} 20... Nxe5 {[%clk 0:02:11.5]} 21. dxe5 {[%clk 0:01:35.4]}
21... Qg6 {[%clk 0:02:06.2]} 22. Kh1 {[%clk 0:01:16.7]} 22... Qxg4 {[%clk
0:02:00.7]} 23. Rg1 {[%clk 0:01:16.5]} 23... Qxf4 {[%clk 0:01:57.7]} 24. Qb6
{[%clk 0:01:03.6]} 24... Qxd2 {[%clk 0:01:21.4]} 25. Qxc7 {[%clk 0:01:02.9]}
25... Rf7 {[%clk 0:01:22.3]} 26. Qc6 {[%clk 0:00:58.2]} 26... Raf8 {[%clk
0:01:22.7]} 27. Qxe6 {[%clk 0:00:57.3]} 27... Kh8 {[%clk 0:01:23.9]} 28. Rg2
{[%clk 0:00:49]} 28... Qd3 {[%clk 0:01:11.1]} 29. Rag1 {[%clk 0:00:42]} 29...
Qe4 {[%clk 0:01:11.6]} 30. Qb6 {[%clk 0:00:22.9]} 30... Rf2 {[%clk 0:00:57.7]}
31. e6 {[%clk 0:00:19.4]} 31... Rxg2 {[%clk 0:00:56.6]} 32. e7 {[%clk
0:00:15.6]} 32... Rg3+ {[%clk 0:00:53.1]} 0-1

[Event "*** Titled Tuesday Blitz"]
[Site "Chess.com"]
[Date "2018.10.02"]
[Round "1"]
[White "Kawhi_Leonard2"]
[Black "Federtiu"]
[Result "0-1"]
[WhiteElo "2278"]
[BlackElo "2604"]
[TimeControl "180+2"]
[EndTime "13:07:16 PDT"]
[Termination "Federtiu won by resignation"]

1. e4 {[%clk 0:02:52.7]} 1... g6 {[%clk 0:03:01.9]} 2. d4 {[%clk 0:02:52.6]}
2... Bg7 {[%clk 0:03:03.2]} 3. Nc3 {[%clk 0:02:53.2]} 3... d6 {[%clk 0:03:03.5]}
4. Nf3 {[%clk 0:02:53.2]} 4... a6 {[%clk 0:03:03.3]} 5. a4 {[%clk 0:02:52.4]}
5... b6 {[%clk 0:03:01]} 6. Bd3 {[%clk 0:02:49.7]} 6... e6 {[%clk 0:03:00.8]} 7.
O-O {[%clk 0:02:49.7]} 7... Ne7 {[%clk 0:03:01.6]} 8. Re1 {[%clk 0:02:50.8]}
8... Nd7 {[%clk 0:03:01.9]} 9. Be3 {[%clk 0:02:47.2]} 9... Bb7 {[%clk
0:03:01.4]} 10. Qd2 {[%clk 0:02:47.8]} 10... h6 {[%clk 0:03:02.6]} 11. h3 {[%clk
0:02:46.8]} 11... g5 {[%clk 0:03:00.2]} 12. Nh2 {[%clk 0:02:44.9]} 12... Ng6
{[%clk 0:02:57]} 13. g3 {[%clk 0:02:40.6]} 13... O-O {[%clk 0:02:51]} 14. Ne2
{[%clk 0:02:32.2]} 14... f5 {[%clk 0:02:42.7]} 15. exf5 {[%clk 0:02:28]} 15...
exf5 {[%clk 0:02:44.6]} 16. f4 {[%clk 0:02:28.2]} 16... gxf4 {[%clk 0:02:13]}
17. Nxf4 {[%clk 0:02:21.7]} 17... Nxf4 {[%clk 0:02:10]} 18. gxf4 {[%clk
0:02:21.8]} 18... Qh4 {[%clk 0:02:08]} 19. Qf2 {[%clk 0:01:52.6]} 19... Qxh3
{[%clk 0:02:04.5]} 20. Bf1 {[%clk 0:01:47.7]} 20... Qh5 {[%clk 0:02:04.8]} 21.
Bg2 {[%clk 0:01:47.2]} 21... Bxg2 {[%clk 0:02:05.6]} 22. Qxg2 {[%clk 0:01:48.5]}
22... Kh8 {[%clk 0:01:56.5]} 23. Kh1 {[%clk 0:01:49]} 23... Rg8 {[%clk
0:01:52.5]} 24. Rg1 {[%clk 0:01:49.2]} 24... Nf6 {[%clk 0:01:49.8]} 25. Qg6
{[%clk 0:01:47.5]} 25... Qxg6 {[%clk 0:01:42.4]} 26. Rxg6 {[%clk 0:01:49.4]}
26... Nd5 {[%clk 0:01:40]} 27. Bd2 {[%clk 0:01:45]} 27... Kh7 {[%clk 0:01:38.2]}
28. Rg3 {[%clk 0:01:35]} 28... Rae8 {[%clk 0:01:36.2]} 29. c4 {[%clk 0:01:26.2]}
29... Nf6 {[%clk 0:01:29.8]} 30. Rg2 {[%clk 0:01:21.6]} 30... Ne4 {[%clk
0:01:16]} 31. Be3 {[%clk 0:01:22.4]} 31... Bf6 {[%clk 0:01:12.4]} 32. Nf1 {[%clk
0:01:22]} 32... Rg4 {[%clk 0:01:06.4]} 33. Rxg4 {[%clk 0:01:17.4]} 33... fxg4
{[%clk 0:01:08.3]} 34. Kg2 {[%clk 0:01:18.4]} 34... h5 {[%clk 0:01:08.8]} 35.
Nh2 {[%clk 0:01:17.3]} 35... Kg6 {[%clk 0:01:05.4]} 36. f5+ {[%clk 0:01:14.9]}
36... Kxf5 {[%clk 0:01:04.6]} 37. Rf1+ {[%clk 0:01:15.9]} 37... Kg6 {[%clk
0:01:05.8]} 38. c5 {[%clk 0:01:11.1]} 38... dxc5 {[%clk 0:01:04.6]} 39. dxc5
{[%clk 0:01:12.3]} 39... Nxc5 {[%clk 0:01:04.2]} 40. Bxc5 {[%clk 0:01:11.8]}
40... bxc5 {[%clk 0:01:06.1]} 41. Rc1 {[%clk 0:01:08.6]} 41... Re2+ {[%clk
0:01:06.8]} 42. Kh1 {[%clk 0:01:08.3]} 42... Bd4 {[%clk 0:01:06.2]} 43. b4
{[%clk 0:01:05]} 43... g3 {[%clk 0:01:06.2]} 44. Nf3 {[%clk 0:01:03.7]} 44...
g2+ {[%clk 0:01:06.5]} 0-1

[Event "*** Titled Tuesday Blitz"]
[Site "Chess.com"]
[Date "2018.10.02"]
[Round "1"]
[White "TST2014"]
[Black "GHANDEEVAM2003"]
[Result "0-1"]
[WhiteElo "2471"]
[BlackElo "2901"]
[TimeControl "180+2"]
[EndTime "13:07:23 PDT"]
[Termination "GHANDEEVAM2003 won by resignation"]

1. d4 {[%clk 0:03:01.1]} 1... d5 {[%clk 0:02:58.8]} 2. c4 {[%clk 0:02:59.7]}
2... e6 {[%clk 0:03:00]} 3. Nf3 {[%clk 0:02:59]} 3... c6 {[%clk 0:03:00.2]} 4.
Qc2 {[%clk 0:02:58.1]} 4... Nf6 {[%clk 0:03:00.4]} 5. g3 {[%clk 0:02:56.9]} 5...
Bd6 {[%clk 0:02:58.2]} 6. Bg2 {[%clk 0:02:57.3]} 6... O-O {[%clk 0:02:59.5]} 7.
O-O {[%clk 0:02:58.2]} 7... b6 {[%clk 0:03:00.5]} 8. Nbd2 {[%clk 0:02:58.6]}
8... Bb7 {[%clk 0:03:00.7]} 9. b3 {[%clk 0:02:59.1]} 9... a5 {[%clk 0:02:58.8]}
10. a3 {[%clk 0:02:56.7]} 10... Na6 {[%clk 0:02:56.7]} 11. Bb2 {[%clk
0:02:52.9]} 11... Rc8 {[%clk 0:02:57.7]} 12. e4 {[%clk 0:02:47.9]} 12... dxe4
{[%clk 0:02:56.9]} 13. Nxe4 {[%clk 0:02:49.4]} 13... Nxe4 {[%clk 0:02:56.6]} 14.
Qxe4 {[%clk 0:02:50.9]} 14... Qe7 {[%clk 0:02:57.6]} 15. Rfe1 {[%clk 0:02:47.8]}
15... Rfe8 {[%clk 0:02:50.3]} 16. h4 {[%clk 0:02:29]} 16... c5 {[%clk
0:02:38.1]} 17. Qg4 {[%clk 0:02:25.1]} 17... f5 {[%clk 0:02:36.8]} 18. Qg5
{[%clk 0:02:22.8]} 18... cxd4 {[%clk 0:02:34.6]} 19. Qxe7 {[%clk 0:02:21.9]}
19... Rxe7 {[%clk 0:02:36.5]} 20. Bxd4 {[%clk 0:02:21.1]} 20... Nc5 {[%clk
0:02:33.9]} 21. Rab1 {[%clk 0:02:16.8]} 21... Be4 {[%clk 0:02:33.6]} 22. Rbd1
{[%clk 0:02:00.2]} 22... Nxb3 {[%clk 0:02:28.5]} 23. Bxb6 {[%clk 0:02:01.2]}
23... Bxa3 {[%clk 0:02:28.9]} 24. Ng5 {[%clk 0:01:58.1]} 24... Bxg2 {[%clk
0:02:06.6]} 25. Kxg2 {[%clk 0:01:59]} 25... Bc5 {[%clk 0:01:58.7]} 26. Rd8+
{[%clk 0:01:53.8]} 26... Rxd8 {[%clk 0:01:58]} 27. Bxd8 {[%clk 0:01:55.4]} 27...
Re8 {[%clk 0:01:58.5]} 28. Bc7 {[%clk 0:01:46.4]} 28... a4 {[%clk 0:01:49.2]}
29. Rxe6 {[%clk 0:01:40.7]} 29... Rxe6 {[%clk 0:01:41.6]} 30. Nxe6 {[%clk
0:01:41.9]} 30... a3 {[%clk 0:01:41.4]} 31. Nxc5 {[%clk 0:01:43]} 31... Nxc5
{[%clk 0:01:43.3]} 32. Be5 {[%clk 0:01:41.4]} 32... Kf7 {[%clk 0:01:36]} 33. Kf3
{[%clk 0:01:39.8]} 33... a2 {[%clk 0:01:34.3]} 34. Bc3 {[%clk 0:01:33.1]} 34...
g6 {[%clk 0:01:29.2]} 35. Kf4 {[%clk 0:01:29.2]} 35... Ke6 {[%clk 0:01:22.7]}
36. f3 {[%clk 0:01:27.9]} 36... h6 {[%clk 0:01:12.6]} 37. g4 {[%clk 0:01:27.7]}
37... fxg4 {[%clk 0:01:08.9]} 38. fxg4 {[%clk 0:01:28.4]} 38... g5+ {[%clk
0:01:09.3]} 39. hxg5 {[%clk 0:01:28.4]} 39... hxg5+ {[%clk 0:01:11.2]} 40. Ke3
{[%clk 0:01:27.7]} 40... Nb3 {[%clk 0:01:11.1]} 41. c5 {[%clk 0:01:25]} 41...
Nxc5 {[%clk 0:01:06.7]} 42. Kd2 {[%clk 0:01:15.6]} 42... a1=Q {[%clk 0:01:05.4]}
43. Bxa1 {[%clk 0:01:16.1]} 43... Nb3+ {[%clk 0:01:06.7]} 44. Kc3 {[%clk
0:01:17.7]} 44... Nxa1 {[%clk 0:01:07.9]} 45. Kb2 {[%clk 0:01:18.2]} 45... Ke5
{[%clk 0:01:08.9]} 46. Kxa1 {[%clk 0:01:19.8]} 46... Kf4 {[%clk 0:01:10.3]} 47.
Kb2 {[%clk 0:01:21.5]} 47... Kxg4 {[%clk 0:01:11.7]} 48. Kc2 {[%clk 0:01:23.2]}
48... Kf3 {[%clk 0:01:13]} 49. Kd2 {[%clk 0:01:24.8]} 49... Kf2 {[%clk
0:01:13.8]} 50. Kd3 {[%clk 0:01:25.6]} 50... g4 {[%clk 0:01:15.2]} 51. Ke4
{[%clk 0:01:27.1]} 51... g3 {[%clk 0:01:17.1]} 52. Kf4 {[%clk 0:01:27.8]} 52...
g2 {[%clk 0:01:19]} 53. Ke4 {[%clk 0:01:29.2]} 53... g1=Q {[%clk 0:01:20.9]} 0-1

[Event "*** Titled Tuesday Blitz"]
[Site "Chess.com"]
[Date "2018.10.02"]
[Round "1"]
[White "ahmadzada13"]
[Black "saraswathii"]
[Result "1-0"]
[WhiteElo "2618"]
[BlackElo "2314"]
[TimeControl "180+2"]
[EndTime "13:07:24 PDT"]
[Termination "ahmadzada13 won by resignation"]

1. e4 {[%clk 0:03:01.9]} 1... c5 {[%clk 0:02:59.4]} 2. Nf3 {[%clk 0:03:03.1]}
2... e6 {[%clk 0:02:59.2]} 3. d4 {[%clk 0:03:04.3]} 3... cxd4 {[%clk 0:02:59.3]}
4. Nxd4 {[%clk 0:03:06.2]} 4... Nf6 {[%clk 0:02:59.2]} 5. Nc3 {[%clk 0:03:06]}
5... Nc6 {[%clk 0:03:00]} 6. Ndb5 {[%clk 0:03:03.3]} 6... Bb4 {[%clk 0:02:59.7]}
7. a3 {[%clk 0:03:02]} 7... Bxc3+ {[%clk 0:03:00.2]} 8. Nxc3 {[%clk 0:03:03.9]}
8... d5 {[%clk 0:03:01.2]} 9. exd5 {[%clk 0:03:01.1]} 9... exd5 {[%clk
0:03:03.1]} 10. Bd3 {[%clk 0:03:02]} 10... d4 {[%clk 0:03:03.7]} 11. Ne2 {[%clk
0:03:00.6]} 11... O-O {[%clk 0:03:03.2]} 12. O-O {[%clk 0:03:00.8]} 12... Bg4
{[%clk 0:02:56.3]} 13. f3 {[%clk 0:02:58.4]} 13... Be6 {[%clk 0:02:52]} 14. Bg5
{[%clk 0:02:58.1]} 14... h6 {[%clk 0:02:52.6]} 15. Bh4 {[%clk 0:02:57.7]} 15...
Rc8 {[%clk 0:02:47.6]} 16. Bf2 {[%clk 0:02:55.4]} 16... Qd6 {[%clk 0:02:39.8]}
17. c3 {[%clk 0:02:44.8]} 17... Nd5 {[%clk 0:02:27.8]} 18. Nxd4 {[%clk
0:02:40.8]} 18... Nxd4 {[%clk 0:02:27]} 19. Bxd4 {[%clk 0:02:42.7]} 19... Nf4
{[%clk 0:02:26.3]} 20. Rf2 {[%clk 0:02:28.8]} 20... Nxd3 {[%clk 0:02:06.9]} 21.
Qxd3 {[%clk 0:02:28.2]} 21... Bc4 {[%clk 0:02:03.4]} 22. Qd2 {[%clk 0:02:25.1]}
22... b6 {[%clk 0:02:00]} 23. f4 {[%clk 0:02:20.9]} 23... Rfe8 {[%clk
0:01:56.5]} 24. f5 {[%clk 0:02:18.4]} 24... f6 {[%clk 0:01:52.6]} 25. Re1 {[%clk
0:02:14]} 25... Rxe1+ {[%clk 0:01:51]} 26. Qxe1 {[%clk 0:02:15.9]} 26... Qd7
{[%clk 0:01:51.2]} 27. Qd1 {[%clk 0:02:10.5]} 27... Re8 {[%clk 0:01:48.2]} 28.
h3 {[%clk 0:02:08.8]} 28... Re4 {[%clk 0:01:47.4]} 29. Kh2 {[%clk 0:02:02.8]}
29... Qd6+ {[%clk 0:01:47.3]} 30. Kg1 {[%clk 0:02:00.3]} 30... Qg3 {[%clk
0:01:45.4]} 31. b3 {[%clk 0:01:57.2]} 31... Bd3 {[%clk 0:01:34.9]} 32. Qd2
{[%clk 0:01:50.5]} 32... Re8 {[%clk 0:01:16.7]} 33. c4 {[%clk 0:01:46.5]} 33...
Bb1 {[%clk 0:01:00.9]} 34. b4 {[%clk 0:01:42.7]} 34... Qxa3 {[%clk 0:00:53.3]}
35. Bxf6 {[%clk 0:01:38.9]} 35... gxf6 {[%clk 0:00:48.6]} 36. Rf3 {[%clk
0:01:36.1]} 36... Qa1 {[%clk 0:00:45]} 37. Rg3+ {[%clk 0:01:34]} 37... Kf7
{[%clk 0:00:21.1]} 38. Qd7+ {[%clk 0:01:22]} 38... Re7 {[%clk 0:00:17.6]} 39.
Qd5+ {[%clk 0:01:21.9]} 1-0

[Event "*** Titled Tuesday Blitz"]
[Site "Chess.com"]
[Date "2018.10.02"]
[Round "1"]
[White "Anton_Demchenko"]
[Black "sergeikim"]
[Result "1-0"]
[WhiteElo "2827"]
[BlackElo "2452"]
[TimeControl "180+2"]
[EndTime "13:07:28 PDT"]
[Termination "Anton_Demchenko won by resignation"]

1. e4 {[%clk 0:02:52.9]} 1... e5 {[%clk 0:03:00.4]} 2. Nf3 {[%clk 0:02:51.9]}
2... Nc6 {[%clk 0:03:01.4]} 3. Bc4 {[%clk 0:02:52.4]} 3... Bc5 {[%clk
0:03:00.3]} 4. d3 {[%clk 0:02:53.1]} 4... Nf6 {[%clk 0:03:01]} 5. Bg5 {[%clk
0:02:54.1]} 5... d6 {[%clk 0:03:01.3]} 6. Nbd2 {[%clk 0:02:53.1]} 6... Qe7
{[%clk 0:02:56.6]} 7. a4 {[%clk 0:02:53.3]} 7... a6 {[%clk 0:02:56.6]} 8. c3
{[%clk 0:02:54.2]} 8... Ba7 {[%clk 0:02:56.2]} 9. O-O {[%clk 0:02:54.4]} 9...
Nd8 {[%clk 0:02:56.4]} 10. d4 {[%clk 0:02:38.9]} 10... Ne6 {[%clk 0:02:56.5]}
11. Bh4 {[%clk 0:02:38.1]} 11... Nf4 {[%clk 0:02:56.3]} 12. Re1 {[%clk 0:02:35]}
12... Ng6 {[%clk 0:02:55.3]} 13. Bg3 {[%clk 0:02:32.8]} 13... O-O {[%clk
0:02:49.5]} 14. Nf1 {[%clk 0:02:17.4]} 14... Bg4 {[%clk 0:02:36.2]} 15. Ne3
{[%clk 0:02:17.5]} 15... Bxf3 {[%clk 0:02:31.4]} 16. Qxf3 {[%clk 0:02:18.7]}
16... exd4 {[%clk 0:02:30.9]} 17. Nf5 {[%clk 0:02:16.9]} 17... Qd7 {[%clk
0:02:24.6]} 18. cxd4 {[%clk 0:02:16.7]} 18... Rae8 {[%clk 0:02:17]} 19. Bd3
{[%clk 0:02:08.3]} 19... Re6 {[%clk 0:01:51.6]} 20. Bc4 {[%clk 0:01:53]} 20...
Ree8 {[%clk 0:01:51.4]} 21. b3 {[%clk 0:01:54.2]} 21... Bb8 {[%clk 0:01:46.8]}
22. Rad1 {[%clk 0:01:50.3]} 22... c6 {[%clk 0:01:43.9]} 23. e5 {[%clk
0:01:35.7]} 23... Nd5 {[%clk 0:01:38.7]} 24. Bxd5 {[%clk 0:01:19.6]} 24... cxd5
{[%clk 0:01:38.3]} 25. exd6 {[%clk 0:01:21]} 25... Re6 {[%clk 0:01:34.8]} 26.
Qxd5 {[%clk 0:01:21.7]} 26... Rfe8 {[%clk 0:01:29.3]} 27. Re3 {[%clk 0:01:22.5]}
27... Nf8 {[%clk 0:01:25.6]} 28. Qf3 {[%clk 0:01:09.3]} 28... Rf6 {[%clk
0:01:20.8]} 29. Rxe8 {[%clk 0:01:06.1]} 29... Qxe8 {[%clk 0:01:12.1]} 30. Qg4
{[%clk 0:00:37.6]} 30... Ng6 {[%clk 0:01:05.1]} 31. d7 {[%clk 0:00:36.2]} 31...
Qd8 {[%clk 0:01:00.5]} 32. Bxb8 {[%clk 0:00:36.3]} 32... Qxb8 {[%clk 0:01:00.6]}
33. Rc1 {[%clk 0:00:32.9]} 33... Rc6 {[%clk 0:00:55.6]} 34. Rxc6 {[%clk
0:00:33.8]} 34... bxc6 {[%clk 0:00:56.2]} 35. Qe4 {[%clk 0:00:35]} 35... Kf8
{[%clk 0:00:54.6]} 36. Qxc6 {[%clk 0:00:29.5]} 1-0

[Event "*** Titled Tuesday Blitz"]
[Site "Chess.com"]
[Date "2018.10.02"]
[Round "1"]
[White "Gubajdullin"]
[Black "joppie2"]
[Result "0-1"]
[WhiteElo "2342"]
[BlackElo "2663"]
[TimeControl "180+2"]
[EndTime "13:07:28 PDT"]
[Termination "joppie2 won by resignation"]

1. d4 {[%clk 0:02:55.8]} 1... Nf6 {[%clk 0:02:48.7]} 2. Bf4 {[%clk 0:02:55.6]}
2... d5 {[%clk 0:02:49.1]} 3. e3 {[%clk 0:02:56.1]} 3... c5 {[%clk 0:02:50]} 4.
c3 {[%clk 0:02:55.5]} 4... Nc6 {[%clk 0:02:51.9]} 5. Nd2 {[%clk 0:02:54.2]} 5...
e6 {[%clk 0:02:53.8]} 6. Ngf3 {[%clk 0:02:53.2]} 6... Be7 {[%clk 0:02:55.7]} 7.
Bd3 {[%clk 0:02:53]} 7... O-O {[%clk 0:02:55.9]} 8. Ne5 {[%clk 0:02:52.3]} 8...
Nd7 {[%clk 0:02:53.4]} 9. Qh5 {[%clk 0:02:41.7]} 9... g6 {[%clk 0:02:53.6]} 10.
Qh6 {[%clk 0:02:42.3]} 10... Bf6 {[%clk 0:02:52.2]} 11. Nxc6 {[%clk 0:02:34.1]}
11... bxc6 {[%clk 0:02:47.9]} 12. Bd6 {[%clk 0:02:34.6]} 12... cxd4 {[%clk
0:02:39.3]} 13. Bxf8 {[%clk 0:02:24.8]} 13... dxe3 {[%clk 0:02:38.4]} 14. Qxe3
{[%clk 0:02:11]} 14... Nxf8 {[%clk 0:02:38.2]} 15. Nf3 {[%clk 0:02:09.7]} 15...
Rb8 {[%clk 0:02:37]} 16. Rb1 {[%clk 0:02:04.7]} 16... Qa5 {[%clk 0:02:19.2]} 17.
Rg1 {[%clk 0:01:44.3]} 17... c5 {[%clk 0:02:19.9]} 18. Qd2 {[%clk 0:01:36.6]}
18... Qxa2 {[%clk 0:02:18.4]} 19. b4 {[%clk 0:01:28.7]} 19... Qa3 {[%clk
0:02:16.3]} 20. Rc1 {[%clk 0:01:20.9]} 20... c4 {[%clk 0:02:11.5]} 21. Be2
{[%clk 0:01:18.6]} 21... a5 {[%clk 0:02:10.7]} 22. bxa5 {[%clk 0:01:11.5]} 22...
Rb2 {[%clk 0:02:11.5]} 23. Qe3 {[%clk 0:01:12.2]} 23... Qxa5 {[%clk 0:01:56.1]}
24. Nd4 {[%clk 0:01:09.2]} 24... e5 {[%clk 0:01:54.6]} 25. Nc6 {[%clk
0:01:07.6]} 25... Qc7 {[%clk 0:01:55.2]} 26. Nb4 {[%clk 0:01:07.5]} 26... d4
{[%clk 0:01:53.9]} 27. Nd5 {[%clk 0:01:06.3]} 27... Qd6 {[%clk 0:01:28.3]} 28.
Qf3 {[%clk 0:01:06.6]} 28... Bg5 {[%clk 0:01:28.9]} 29. Ra1 {[%clk 0:00:32.4]}
29... d3 {[%clk 0:01:30.1]} 30. Bd1 {[%clk 0:00:33]} 30... Bb7 {[%clk
0:01:26.2]} 31. Ra5 {[%clk 0:00:33.5]} 31... Bd2+ {[%clk 0:01:23]} 32. Kf1
{[%clk 0:00:34]} 32... Bxc3 {[%clk 0:01:24.9]} 33. Qe3 {[%clk 0:00:17.8]} 33...
Bxd5 {[%clk 0:01:24.3]} 34. Ra7 {[%clk 0:00:16.9]} 34... Bd4 {[%clk 0:01:24.8]}
35. Qc1 {[%clk 0:00:15.1]} 35... Rxf2+ {[%clk 0:01:24.2]} 36. Ke1 {[%clk
0:00:14.6]} 36... Qb4+ {[%clk 0:01:26.1]} 0-1

[Event "*** Titled Tuesday Blitz"]
[Site "Chess.com"]
[Date "2018.10.02"]
[Round "1"]
[White "Thjop"]
[Black "Thee-Chessboy"]
[Result "1-0"]
[WhiteElo "2614"]
[BlackElo "2306"]
[TimeControl "180+2"]
[EndTime "13:07:34 PDT"]
[Termination "Thjop won by resignation"]

1. e4 {[%clk 0:03:00.6]} 1... c5 {[%clk 0:03:00.2]} 2. Nf3 {[%clk 0:03:00.3]}
2... d6 {[%clk 0:03:01.4]} 3. Bb5+ {[%clk 0:02:58]} 3... Bd7 {[%clk 0:03:01.4]}
4. Bxd7+ {[%clk 0:02:58.7]} 4... Qxd7 {[%clk 0:03:03.3]} 5. O-O {[%clk
0:02:59.5]} 5... Nc6 {[%clk 0:03:03.9]} 6. c3 {[%clk 0:02:59.8]} 6... Nf6 {[%clk
0:03:01.8]} 7. d4 {[%clk 0:02:58.6]} 7... cxd4 {[%clk 0:03:01.4]} 8. cxd4 {[%clk
0:02:59.3]} 8... e6 {[%clk 0:02:54.9]} 9. d5 {[%clk 0:02:33.5]} 9... Ne5 {[%clk
0:02:44.7]} 10. Nxe5 {[%clk 0:02:10.7]} 10... dxe5 {[%clk 0:02:44.9]} 11. Nc3
{[%clk 0:02:11.8]} 11... h6 {[%clk 0:02:39.9]} 12. Be3 {[%clk 0:01:58.7]} 12...
exd5 {[%clk 0:02:34.4]} 13. exd5 {[%clk 0:01:57.8]} 13... Bd6 {[%clk 0:02:33.4]}
14. h3 {[%clk 0:01:46.4]} 14... O-O {[%clk 0:02:32.2]} 15. Qb3 {[%clk
0:01:46.4]} 15... a6 {[%clk 0:02:04.6]} 16. Na4 {[%clk 0:01:39.5]} 16... Qe7
{[%clk 0:02:03.8]} 17. Nb6 {[%clk 0:01:33.4]} 17... Rad8 {[%clk 0:02:02.9]} 18.
Rac1 {[%clk 0:01:28.1]} 18... Ne4 {[%clk 0:01:57.9]} 19. Qd3 {[%clk 0:00:58.8]}
19... f5 {[%clk 0:01:51.2]} 20. f3 {[%clk 0:00:58.1]} 20... Ng3 {[%clk
0:01:28.5]} 21. Rfe1 {[%clk 0:00:56.7]} 21... e4 {[%clk 0:01:25.1]} 22. Qd1
{[%clk 0:00:50.3]} 22... f4 {[%clk 0:01:21.1]} 23. Bf2 {[%clk 0:00:48.3]} 23...
e3 {[%clk 0:01:09.8]} 24. Bxg3 {[%clk 0:00:48.9]} 24... fxg3 {[%clk 0:01:10.2]}
25. Qd4 {[%clk 0:00:43.3]} 25... Rfe8 {[%clk 0:01:04]} 26. Re2 {[%clk
0:00:32.3]} 26... Be5 {[%clk 0:00:30.2]} 27. Qe4 {[%clk 0:00:20.4]} 27... Qb4
{[%clk 0:00:23.8]} 28. Qxb4 {[%clk 0:00:19.3]} 1-0